Cogmind - Beta 15 @@@ ROGUE MODE // 2025.09.13 @ 19:55:27 Player: Petvaria Result: Self-destructed Performance ------------- Evolutions (0) 0 Regions Visited (3) 600 Robots Destroyed (13) 65 Value Destroyed (312) 312 Prototype IDs (7) 140 Alien Tech Used (0) 0 Bonus (300) 300 TOTAL SCORE: 1417 Bonus ------- Registered with UFD 300 Cogmind --------- Core Integrity 105/250 Matter 290/300 Energy 140/140 System Corruption 0% Temperature Cool (0) Movement Rolling (115) Ox1 Location -7/Scraptown Parts ------- > --- POWER (1) -------- Light Deuterium Engine > --- PROPULSION (2) --- Aluminum Leg Compact Wheel > --- UTILITY (2) ------ Large Storage Unit > --- WEAPON (2) ------- Light Assault Rifle Light Assault Rifle > --- INVENTORY (15) --- Light Ion Engine Aluminum Leg Aluminum Leg VTOL Module Cesium-ion Thruster Xenon Bombardment Thruster Xenon Bombardment Thruster Medium Storage Unit Advanced Sensor Array Advanced Signal Interpreter Medium Reactive Plating Hacking Suite Makeshift Axe Makeshift Spear Peak State ------------ > --- POWER ------------ Light Deuterium Engine > --- PROPULSION ------- Aluminum Leg Compact Wheel > --- UTILITY ---------- Large Storage Unit > --- WEAPON ----------- Light Assault Rifle Light Assault Rifle > --- INVENTORY -------- Light Ion Engine Aluminum Leg Aluminum Leg VTOL Module Cesium-ion Thruster Xenon Bombardment Thruster Xenon Bombardment Thruster Medium Storage Unit Advanced Sensor Array Advanced Signal Interpreter Medium Reactive Plating Hacking Suite Makeshift Axe Makeshift Spear [Rating: 12] Favorites ----------- Power Ion Engine Engine Ion Engine Propulsion Aluminum Leg Treads Light Treads Leg Aluminum Leg Wheel Compact Wheel Utility Large Storage Unit Storage Large Storage Unit Weapon Light Assault Rifle Ballistic Gun Light Assault Rifle Build | -11 -10 -10 -7 ------- Run | Yrd Mat Sub Scr Slots Evolved . | . . . . Power . | . . . . Propulsion . | . . . . Utility . | . . . . Weapon . | . . . . Parts Attached 13 | 6 1 4 2 Power 2 | 1 . . 1 Engine 2 | 1 . . 1 Core . | . . . . Reactor . | . . . . Propulsion 5 | 2 . 2 1 Treads 2 | 2 . . . Leg 1 | . . 1 . Wheel 2 | . . 1 1 Hover . | . . . . Flight . | . . . . Utility 2 | 1 1 . . Device . | . . . . Storage 2 | 1 1 . . Processor . | . . . . Hackware . | . . . . Protection . | . . . . Artifact . | . . . . Weapon 4 | 2 . 2 . Energy Gun . | . . . . Energy Cannon . | . . . . Ballistic Gun 4 | 2 . 2 . Ballistic Cannon . | . . . . Launcher . | . . . . Special Weapon . | . . . . Impact Weapon . | . . . . Slashing Weapon . | . . . . Piercing Weapon . | . . . . Special Melee Weapon . | . . . . Unidentified Prototypes . | . . . . Parts Lost 6 | . . 6 . Power 1 | . . 1 . Propulsion 3 | . . 3 . Utility . | . . . . Weapon 2 | . . 2 . Highest Loss Streak 5 | . . 5 . To Critical Strikes . | . . . . Average Backups 8 | 3 7 7 9 Power 1 | . 1 1 1 Propulsion 3 | 1 4 3 3 Utility 2 | . . 1 3 Weapon 1 | . 1 1 1 Tool/Special . | . . . . Unused Backups 15 | . . . 15 Power 1 | . . . 1 Propulsion 6 | . . . 6 Utility 5 | . . . 5 Weapon 3 | . . . 3 Tool/Special . | . . . . Average Slot Usage (%) 75 | . 84 72 73 Engine 6 | . 13 8 2 Treads 8 | . 27 11 . Leg 8 | . . 5 14 Wheel 8 | . . 4 13 Storage 14 | . 14 14 14 Ballistic Gun 27 | . 27 27 28 Peak Build Rating 12 | 6 7 6 12 Average Rating 6 | 4 5 5 7 On Entrance 4 | . 6 6 4 Naked Turns . | . . . . Heaviest Build 28 | 13 28 28 27 Greatest Support 40 | 40 40 40 16 Greatest Overweight (x) 2 | . 1 2 2 Average Overweight (x) . | . . 1 1 Largest Inventory Capacity 15 | 8 15 15 15 Average Capacity 14 | 7 13 15 15 Most Carried 15 | 6 10 9 15 Average Carried 8 | 3 7 7 9 Final Capacity 15 | 8 15 15 15 Final Carried 14 | 6 9 5 14 Class Distribution -------------------- 100% | Mutant Dominant Class ---------------- Mutant | -10/Materials Mutant | -10/Subcaves Mutant | -7/Scraptown Resources | -11 -10 -10 -7 ----------- Run | Yrd Mat Sub Scr Matter Collected 478 | 241 153 74 10 Remotely . | . . . . Salvage Created 374 | . 243 131 . Parts 31 | . 24 7 . Haulers Intercepted . | . . . . Recyclers Shooed 2 | . 2 . . Parts Field Recycled . | . . . . Retrieved Matter . | . . . . Parts Self-Destructed 1 | . . 1 . Prevented . | . . . . Kills | -11 -10 -10 -7 ------- Run | Yrd Mat Sub Scr Combat Hostiles Destroyed 12 | . 9 3 . Guns 12 | . 9 3 . Classes Destroyed 4 | . 3 1 . Watcher 1 | . 1 . . Swarmer 6 | . 6 . . Grunt 4 | . 3 1 . Subdweller 2 | . . 2 . Best Kill Streak 5 | . 5 2 . Combat Bots Only 4 | . 4 2 . Max Kills in Single Turn 1 | . 1 1 . Gunslinging . | . . . . Exploded . | . . . . Melee . | . . . . Uniques/NPCs Destroyed . | . . . . Combat | -11 -10 -10 -7 -------- Run | Yrd Mat Sub Scr Hostile Shots Fired 86 | . 44 42 . Missed 24 | . 15 9 . Hits 62 | . 29 33 . Projectile 62 | . 29 33 . Critical Strikes 4 | . . 4 . Damage Taken 887 | . 257 630 . Core 145 | . 28 117 . Absorbed by Shields . | . . . . Core Remaining (%) 100 | 100 . . . Volleys Fired 45 | . 24 21 . Largest 2 | . 2 2 . Hottest 40 | . 40 40 . Shots Fired 88 | . 48 40 . Gun 88 | . 48 40 . Cannon . | . . . . Launcher . | . . . . Special . | . . . . Kinetic 88 | . 48 40 . Thermal . | . . . . Explosive . | . . . . Electromagnetic . | . . . . Robot Hit Streak 11 | . 5 11 . Robot Miss Streak 3 | . 3 1 . Penetration Max . | . . . . Secondary Targets . | . . . . Shots Hit Robots 59 | . 27 32 . Core Hits 27 | . 16 11 . Critical Kills 1 | . 1 . . Critical Parts Destroyed 1 | . . 1 . Critical Strikes 2 | . 1 1 . Destroy 2 | . 1 1 . Melee Attacks . | . . . . Impact . | . . . . Slashing . | . . . . Piercing . | . . . . Sneak Attacks . | . . . . Combat Hostiles . | . . . . Follow-up Attacks . | . . . . Damage Inflicted 592 | . 324 268 . Guns 549 | . 281 268 . Cannons . | . . . . Explosions 41 | . 41 . . Melee . | . . . . Ramming 2 | . 2 . . Kinetic 549 | . 281 268 . Thermal . | . . . . Explosive . | . . . . Electromagnetic 41 | . 41 . . Impact . | . . . . Slashing . | . . . . Piercing . | . . . . Highest Corruption . | . . . . Average Corruption . | . . . . Corruption Purged . | . . . . Corruption Blocked . | . . . . Overload Shots . | . . . . Overflow Damage . | . . . . Projectiles . | . . . . Explosions . | . . . . Melee . | . . . . Knockbacks . | . . . . Impact . | . . . . Kinetic . | . . . . Secondary . | . . . . Self-Inflicted Damage . | . . . . Shots . | . . . . Rammed 1 | . 1 . . Targets Rammed 1 | . 1 . . Kicked . | . . . . Crushed . | . . . . Highest Temperature 254 | . 12 254 . Average Temperature 60 | . 6 125 . Received Heat Transfer 602 | . 54 548 . Siege Activations . | . . . . Martial Activations . | . . . . Shielding Activations . | . . . . Robots Disrupted . | . . . . Combat Hostiles . | . . . . Robots Corrupted . | . . . . Combat Hostiles . | . . . . Parts Fried . | . . . . Impact Corruptions . | . . . . Robots Melted . | . . . . Combat Hostiles . | . . . . Parts Melted 1 | . . 1 . Heat Transferred . | . . . . Parts Sabotaged . | . . . . Parts Stolen . | . . . . Parts Stripped . | . . . . Power Chain Reactions . | . . . . Alert | -11 -10 -10 -7 ------- Run | Yrd Mat Sub Scr Maximum Alert Level . | . . . . Low Security (%) 100 | 100 100 . . Level 1 . | . . . . Level 2 . | . . . . Level 3 . | . . . . Level 4 . | . . . . Level 5 . | . . . . High Security . | . . . . Max Security . | . . . . Peak Influence 162 | . 162 . . Initial . | . . . . Average 63 | . 72 . . Influence Increases 312 | . 262 50 . Destroy 0b10 Robot/C 200 | . 180 20 . Destroy 0b10 Robot/NC 5 | . 5 . . Destroy Leader 32 | . 32 . . Disable Machine 30 | . 30 . . Lose Combat Pursuer 45 | . 15 30 . Influence Decreases 312 | . 188 124 . Entered New Map 36 | . . 36 . Time Decay 276 | . 188 88 . Squads Dispatched 1 | . 1 . . Investigation 1 | . 1 . . Extermination . | . . . . Reinforcement . | . . . . Assault . | . . . . Garrison . | . . . . Intercept . | . . . . Searches Triggered . | . . . . Construction Impeded . | . . . . Haulers Reinforced . | . . . . Active Scanning Responses . | . . . . Cargo Convoy Interrupts . | . . . . Stealth | -11 -10 -10 -7 --------- Run | Yrd Mat Sub Scr Distress Signals 1 | . 1 . . Communications Jammed . | . . . . Distress Signals . | . . . . Times Spotted 16 | . 11 5 . Peak Tracking Total 5 | . 5 2 . Tactical Retreats 3 | . 1 2 . Traps | -11 -10 -10 -7 ------- Run | Yrd Mat Sub Scr Traps Triggered 5 | . 5 . . Indirectly 3 | . 3 . . Trap Hack Attempts . | . . . . Triggered . | . . . . Disarmed . | . . . . Reprogrammed . | . . . . Reused . | . . . . Traps Extracted . | . . . . Installed . | . . . . Triggered . | . . . . Machines | -11 -10 -10 -7 ---------- Run | Yrd Mat Sub Scr Machines Disabled 2 | . 2 . . Max in Single Turn 2 | . 2 . . Machines Repaired . | . . . . Machines Dismantled . | . . . . Machines Sabotaged . | . . . . Overloaded Fab Kills . | . . . . Hacking | -11 -10 -10 -7 --------- Run | Yrd Mat Sub Scr Machines Accessed . | . . . . Terminals . | . . . . Fabricators . | . . . . Repair Stations . | . . . . Recycling Units . | . . . . Scanalyzers . | . . . . Garrison Access . | . . . . Total Hacks . | . . . . Successful . | . . . . Failed . | . . . . Catastrophic . | . . . . Database Lockouts . | . . . . Manual . | . . . . Terminals . | . . . . Fabricators . | . . . . Repair Stations . | . . . . Recycling Units . | . . . . Scanalyzers . | . . . . Garrison Access . | . . . . Terminal Hacks . | . . . . Fabricator Hacks . | . . . . Repair Station Hacks . | . . . . Recycling Unit Hacks . | . . . . Scanalyzer . | . . . . Garrison Access Hacks . | . . . . Unauthorized Hacks . | . . . . Terminals . | . . . . Fabricators . | . . . . Repair Stations . | . . . . Recycling Units . | . . . . Scanalyzers . | . . . . Garrison Access . | . . . . Data Cores Recovered . | . . . . Used . | . . . . Hacking Detections . | . . . . Full Trace Events . | . . . . Feedback Events . | . . . . Feedback Blocked . | . . . . Robot Schematics Acquired . | . . . . Robots Built . | . . . . Authchips . | . . . . Time . | . . . . Total Robot Build Rating . | . . . . Part Schematics Acquired . | . . . . Parts Built . | . . . . Authchips . | . . . . Time . | . . . . Total Part Build Rating . | . . . . Parts Repaired . | . . . . Time . | . . . . Parts Recycled . | . . . . Recycled Matter . | . . . . Retrieved Matter . | . . . . Retrieved Components . | . . . . Parts Scanalyzed . | . . . . Part Schematics Acquired . | . . . . Parts Damaged . | . . . . Bothacking | -11 -10 -10 -7 ------------ Run | Yrd Mat Sub Scr Used RIF Installer . | . . . . Robots Hacked . | . . . . Non-combat . | . . . . Combat . | . . . . Robot Hacks Applied . | . . . . Relay Couplers Released . | . . . . Fabnet Peak Effective % . | . . . . Robots Rewired . | . . . . Allies Hacked . | . . . . Hacks Repelled . | . . . . Allies | -11 -10 -10 -7 -------- Run | Yrd Mat Sub Scr Total Allies . | . . . . Largest Group . | . . . . Highest-Rated Group . | . . . . Highest-Rated Ally . | . . . . Total Orders . | . . . . Ally Attacks . | . . . . Total Damage . | . . . . Kills . | . . . . Allies Corrupted . | . . . . Allies Melted . | . . . . Intel | -11 -10 -10 -7 ------- Run | Yrd Mat Sub Scr Active Infowar (turns) . | . . . . Robot Analysis Total . | . . . . Derelict Logs Recovered 1 | . . 1 . Drone Launches . | . . . . Drone Recoveries . | . . . . Exploration | -11 -10 -10 -7 ------------- Run | Yrd Mat Sub Scr Turns Passed 3216 | 82 612 858 1664 Spaces Moved 2145 | 52 297 369 1427 Core 16 | 16 . . . Treads 404 | 36 297 71 . Legs 115 | . . 111 4 Wheels 1610 | . . 187 1423 Hover . | . . . . Flight . | . . . . Fastest Speed 50 | 50 160 110 115 Average Speed 130 | 126 160 167 115 Slowest Speed 260 | 160 240 260 260 Overloaded Moves . | . . . . Propulsion Burnouts . | . . . . Robots Hopped . | . . . . Potential Cave-ins . | . . . . Cave-ins Triggered . | . . . . Exploration Rate (%) 49 | 5 71 27 95 Regions Visited 3 Branch Regions 2 Pre-discovered Areas . | . . . . Known Exits Taken . | . . . . Unknown Exits Taken 3 | 1 1 1 . Scrap Searched 5 | . . . 5 Spaces Dug . | . . . . Terrain Destroyed . | . . . . Melee . | . . . . Projectile . | . . . . AOE . | . . . . Terrain Rammed . | . . . . Walls Destroyed . | . . . . Machines Disabled . | . . . . Actions | -11 -10 -10 -7 --------- Run | Yrd Mat Sub Scr Total 2476 | 68 389 575 1444 Wait 240 | . 56 182 2 Move 2142 | 51 296 368 1427 Hop . | . . . . Pick Up 30 | 11 7 . 12 Fast Attach 1 | 1 . . . Attach 15 | 5 4 4 2 Detach . | . . . . Swap . | . . . . Drop 2 | . 1 . 1 Fire 45 | . 24 21 . Melee . | . . . . Ram . | . . . . Kick . | . . . . Crush 1 | . 1 . . Escape Stasis . | . . . . Rewire . | . . . . Trap . | . . . . Miscellaneous . | . . . . Route ------- -11/Scrapyard -10/Materials (discovered 4 exits: [*Mat x2] / [*Min] / [*Sub]) -10/Subcaves (discovered 2 exits: *Mat / *Scr) -7/Scraptown (discovered 2 exits: [*Fac x2]) History --------- Turn | Location | Event 2 | -11/Scrapyard | Met Revision 17 5 | -11/Scrapyard | Discovered new exit (range 14) 83 | -11/Scrapyard | Entered Materials 179 | -10/Materials | Discovered new exit (range 16) 244 | -10/Materials | Discovered new exit (range 10) 305 | -10/Materials | Build established: Mutant 579 | -10/Materials | Discovered new exit (range 15) 667 | -10/Materials | Discovered new exit (range 9) 695 | -10/Materials | Entered Subcaves 696 | -10/Subcaves | Approached by a straggling Scientist 697 | -10/Subcaves | A swath of the cavern ceiling suddenly collapsed 830 | -10/Subcaves | Shifting Twisted Machinery released Sub. Power Source 830 | -10/Subcaves | Identified exit to Materials 1161 | -10/Subcaves | Ambushed by Subdwellers from Twisted Machinery 1205 | -10/Subcaves | Core integrity fell below 50% 1234 | -10/Subcaves | Lost 5 parts (1p2n2w) 1534 | -10/Subcaves | Scientist uncovered a shortcut to Scraptown 1553 | -10/Subcaves | Entered Scraptown 1979 | -7/Scraptown | Visited Cave Peace 2012 | -7/Scraptown | Visited The Evicted 2031 | -7/Scraptown | Visited Fellowship of the Rings 2066 | -7/Scraptown | Visited CPS Storage 2077 | -7/Scraptown | Heard Great Nut preacher, LISTEN AND RECITE! 2270 | -7/Scraptown | Discovered new exit (range 5) 2351 | -7/Scraptown | Visited Awakened 2373 | -7/Scraptown | Visited Artisan Demo Area 2439 | -7/Scraptown | Visited Cyclists 2500 | -7/Scraptown | Visited UFD Registry 2500 | -7/Scraptown | Registered with UFD as "Maceframe" 2545 | -7/Scraptown | Entered Cyclist Reading Room 2597 | -7/Scraptown | Visited Infowarlord's Domain 2613 | -7/Scraptown | Visited Observation Area 2656 | -7/Scraptown | Visited Junk Repository 2816 | -7/Scraptown | Visited Supply Room 2838 | -7/Scraptown | Visited DA-N13 Charitable Foundation 2848 | -7/Scraptown | Found DCF Scrap (28 items) 2905 | -7/Scraptown | Visited Supply Room 2918 | -7/Scraptown | Visited Curators Association 2975 | -7/Scraptown | Discovered new exit (range 5) 3071 | -7/Scraptown | Visited Derelict Rescue Squad 3101 | -7/Scraptown | Visited Modified Component R&D 3217 | -7/Scraptown | Self-destructed Last Messages --------------- after which they were swiftly hunted down and destroyed. I'm guessing that system is even better protected now, but regardless, they seem to be more dangerous than they put on. LOCAL NARROWCAST: Derelict Rescue Squad. Who you gonna call? 90-7WP(h): Welcome to the UFD, Maceframe! If you're planning on visiting any caves around the 0b10 area, I suggest you take this beacon. You're in luck, this is the last one we have to hand out this cycle. Just drop it and activate, we'll send help as soon as possible. If you end up not using it, bring it on back so we can hand it off to another brave explorer. Resources are limited, after all, and a single beacon will only work once, as we have to spread the help around. LOCAL NARROWCAST: Modified Component R&D. Map ----- +----------------------------------------------------+ | #""" "#???#"" ""#???? ?????# ##"" " | | #"[ ["#???#" "# ??""?????# ##[" " | | #"" """""#???#"" ""# """ ?? ?## ##"" " | | #" "#####???#" & "# "" ## #" | | #X """""#???#"" ""#" """ ## ##"" " | | ## [ #???# #" ## ##=" " | | #" #???# #? ## ##"" " | | #" #???# #???"""""??# #" | | ######## #####???### ######????# #???# ## ####### | | ???##### ########### ########### ##### ## ####### | | ???#"""" """"""""""" """"""""""" """"" "" "## !!" | | ???#" "## !! | | ???#" "## | | ???#" "## | | ???#" "## | | ####" | | """" """""""""""""""""""""""""""" "## "" | | """" """""""""""""""""""""""""""" "##"""" | | """" ""###### ################"" "###### | | """" ""#? #?????????#"" "###### | | """" ""# X"?????????#"" "##*! * | | """" ""# "" "" #?????????#"" "##*!!% | | """" ""# "" 3 "" X"???????###"" "##!![[ | | """" ""# " " #########E#"" "##/=*[ | | ####" "" "" /!=/ | | ???#" "" "" @ "## = | | ####" ""# " " ######### #"" "## *% | | ""# "" "" ""???????###"" "## | | ""#? "" "" #?????????#"" "###### | | ""#?? X"?????????#"" "#????? | | ""#?? #?????????#"" "#????? | | ""###### ################"" "###### | | """""""""""""""""""""""""""" "##"" | | """""""""""""""""""""""""""" " | | "## " | | "## | | "## " | | """#" ## "" | | ???#" # | | ???#"""""" """"""""""" """"""""""" """""" ## "! | | ???####### ########### ########### ###### ###### | | ???????? ???# #??# ## #????? | | ???????# #??#"" #??# ## #????? | | ???????#! !#??#" "#??# # # ## #????? | | ???????#! !#??#" """"" "#??#*!#]! # *## #????? | | ???????#! !#??#" "???" "#??#!/# [[#[ ## #????? | | ???????#! !#??#" "???" "#??############ ###### | | ???????#! !#??#" "???" "#?????????????# | | ???????# #??#" "???" "#?????????????# | | ???????#######??#" """"" "#?????????????# | +----------------------------------------------------+ Best States ------------- Heat Dissipation 25 Energy Generation 14 Energy Capacity 250 Matter Stores 300 Matter Capacity 300 Sight Range 16 Terrain Scan Density 10 Evasion (%) 50 Recoil Reduction 2 Item Schematics ----------------- None Robot Schematics ------------------ None Fabricated ------------ Nothing Repaired ---------- Nothing Alien Tech Used ----------------- None Achievements -------------- None Challenges ------------ None Game ------ Seed TeslaImpulseCapacitor Manual? 0 Play Time 00:17:21 Cumulative 205.5 hours Start 2025.09.13 @ 19:31:53 End 2025.09.13 @ 19:55:27 Sessions 1 Manual Loads 0 Difficulty Rogue Special Mode None Game No. 178 Rogue 178 Adventurer 0 Explorer 0 Win Type - Total 10 Types 4/0/2/2/1/0/0/0/0/1 Lore% 90 Gallery% 84 Achievement% 67 Wizard Run 0 Options --------- Layout 1 ASCII 0 Keyboard 0 Movement Numpad Keybinds 0 Fullscreen 1 Font 24/Proggy Map View 50x35 Zoom Use 0% Tactical HUD 0 Map Filters NONE Filters NONE Steam 1 RUN: 6710098d-3f17-4bc2-8586-b36b53741ed7